bitfinex-derivatives/quotes_ETHF0:USTF0_20251008
["timestamp","ask_amount","ask_price","bid_price","bid_amount"]
[1759887933800,3.11065597,4482.4,4482.3,2.08198722]
[1759887934400,3.87575597,4482.4,4482.3,2.08198722]
[1759887934708,4.38233271,4482.4,4482.3,2.08198722]
[1759887936408,4.04843271,4482.4,4482.3,2.08198722]
[1759887936901,4.04843271,4482.4,4482.1,0.40139]
[1759887936902,0.5425,4482.3,4482.1,0.40139]
[1759887937110,0.7651,4482.0,4481.9,0.71171]
[1759887937303,1.49567674,4482.0,4481.9,0.71171]
[1759887937503,4.33161545,4482.0,4481.9,0.40141]
[1759887938513,4.33161545,4482.0,4481.9,0.71171]
[1759887939107,4.33161545,4482.0,4481.9,0.91621]
[1759887939506,4.73301545,4482.0,4481.9,0.40141]
[1759887939711,4.85101545,4482.0,4481.9,0.40141]
[1759887940609,1.15442,4481.8,4481.7,3.60923]
[1759887940806,1.88399674,4481.8,4481.7,3.2078]
[1759887941010,1.15446,4481.3,4481.2,3.2078]
[1759887941198,1.88403674,4481.3,4481.2,3.2078]
[1759887941402,4.80268898,4481.3,4481.2,3.2078]
[1759887941809,0.83179,4481.0,4480.9,0.3301]
[1759887942107,0.753,4480.6,4480.5,3.81633]
[1759887942310,1.48257674,4480.6,4480.5,3.81633]
[1759887942505,4.39841122,4480.6,4480.5,4.14643]
[1759887942700,4.39841122,4480.6,4480.5,3.2078]
[1759887942898,0.4303,4480.2,4480.1,0.3301]
[1759887943100,0.753,4480.1,4480.0,3.93948]
[1759887943299,1.25957674,4480.1,4480.0,3.5379]
[1759887943506,0.753,4479.9,4479.8,0.17458746]
[1759887943707,0.6094,4479.8,4479.7,0.00263486]
[1759887943899,1.66117674,4479.8,4479.7,0.00263486]
[1759887944103,4.55043993,4479.8,4479.7,0.00263486]
[1759887944711,4.04386319,4479.8,4479.7,0.00263486]
[1759887947213,1.15467,4479.0,4478.9,3.2078]
[1759887947516,4.21575954,4479.0,4478.9,3.2078]
[1759887948213,3.81659997,4479.0,4478.9,3.7472365]
[1759887951111,0.4016,4479.8,4478.9,4.90825372]
[1759887951417,0.4016,4479.8,4479.7,0.5371]
[1759887951418,4.00970207,4479.8,4479.7,0.5371]
[1759887951614,4.23370207,4479.8,4479.7,0.5371]
[1759887951814,1.3786,4479.8,4479.7,0.5371]
[1759887952015,4.23370207,4479.8,4479.7,0.5371]
[1759887952220,4.23587418,4479.8,4479.7,0.5371]
[1759887952820,4.23587418,4479.8,4478.7,0.224]
[1759887952821,0.753,4479.3,4479.2,0.40165]
[1759887953124,1.15467,4479.0,4478.9,3.6118165]
[1759887953421,4.2419067,4479.0,4478.9,4.1489165]
[1759887953919,3.8402367,4479.0,4478.9,4.1489165]
[1759887957026,0.3227,4480.1,4479.7,0.40161]
[1759887957224,0.3551,4480.9,4480.8,0.4105]
[1759887957418,0.6671,4480.9,4480.8,0.4105]
[1759887957813,0.6671,4480.9,4480.8,0.7344]
[1759887958114,0.00217696,4480.9,4480.8,3.9422]
[1759887958420,0.22617696,4480.9,4480.8,3.9422]
[1759887959118,0.00217696,4480.9,4480.8,4.11854008]
[1759887960022,0.7713,4481.9,4481.8,0.2042]
[1759887960222,0.4431,4481.9,4481.8,0.7344]
[1759887960422,0.224,4482.2,4482.1,0.40139]
[1759887960624,0.6671,4482.2,4482.1,4.13729]
[1759887960819,0.7713,4482.7,4482.6,0.92945]
[1759887961017,0.99699967,4482.7,4482.6,0.7366615]
[1759887961721,0.00169967,4482.7,4482.6,0.7366615]
[1759887961928,0.22379967,4482.7,4482.6,0.7366615]
[1759887962918,0.77299967,4482.7,4482.6,0.0022615]
[1759887963119,0.77299967,4482.7,4481.5,3.7359]
[1759887963120,0.7713,4481.6,4481.5,3.7359]
[1759887963319,0.4431,4481.6,4481.5,3.9422]
[1759887963518,3.07241857,4481.6,4481.5,4.0782]
[1759887963726,3.69485857,4481.6,4481.3,0.40146]
[1759887964029,0.7713,4481.5,4481.4,0.92955]
[1759887964324,3.62285507,4481.5,4481.4,0.92955]
[1759887964920,3.62285507,4481.5,4481.4,0.5281]
[1759887965120,1.17275,4481.4,4481.3,3.21035997]
[1759887965419,1.17275,4481.4,4481.3,3.94475997]
[1759887965420,3.29379239,4481.4,4481.3,3.94475997]
[1759887966226,3.62199239,4481.4,4481.3,3.94475997]
[1759887966422,3.62199239,4481.4,4481.3,3.73845997]
[1759887966631,3.62199239,4481.4,4481.3,3.21035997]
[1759887967323,3.62199239,4481.4,4481.3,0.00255997]
[1759887967721,8.62199239,4481.4,4481.3,0.00255997]
[1759887968227,11.82979239,4481.4,4481.3,0.00255997]
[1759887968823,0.7713,4480.4,4480.3,3.7359]
[1759887969221,3.61779966,4480.4,4480.3,3.7359]
[1759887969726,3.61779966,4480.4,4480.3,3.73843397]
[1759887970221,3.61779966,4480.4,4480.3,4.13998397]
[1759887970423,4.01933966,4480.4,4480.3,3.73843397]
[1759887970620,4.01933966,4480.4,4480.3,0.00253397]
[1759887971132,3.61779966,4480.4,4480.3,0.53063397]
[1759887971332,3.84179966,4480.4,4480.3,0.53063397]
[1759887972533,3.84179966,4480.4,4480.3,0.00253397]
[1759887975335,3.84179966,4480.4,4480.3,0.73693397]
[1759887975529,3.84179966,4480.4,4480.3,0.00253397]
[1759887978736,3.84179966,4480.4,4480.3,0.53063397]
[1759887979032,2.84649966,4480.4,4480.3,8.43762062]
[1759887979227,0.224,4480.7,4480.6,0.7344]
[1759887979427,0.62358,4481.1,4481.0,1.27189]
[1759887979628,0.4461,4481.1,4481.0,1.27189]
[1759887979823,3.32655003,4481.1,4481.0,1.27189]
[1759887980028,2.88045003,4481.1,4481.0,6.27189]
[1759887980233,0.2221,4481.8,4481.7,0.81192]
[1759887980431,0.4461,4481.8,4481.7,0.81192]
[1759887980736,3.51864526,4481.8,4481.7,1.13582]
[1759887980938,3.84684526,4481.8,4481.7,0.7344]
[1759887981633,0.72966,4481.3,4481.2,0.5281]
[1759887981839,0.8624,4481.0,4480.9,3.60929]
[1759887982137,3.87467799,4481.0,4480.9,3.60929]
[1759887982332,3.87467799,4481.0,4480.9,3.93319]
[1759887982637,3.87467799,4481.0,4480.9,4.13739]
[1759887985233,2.87937799,4481.0,4480.9,4.34369]
[1759887985440,0.0931,4482.0,4480.9,4.34369]
[1759887985441,0.2221,4481.6,4481.5,0.8704]
[1759887985638,0.4461,4481.6,4481.5,4.0782]
[1759887985936,3.36120707,4481.6,4481.5,4.0782]
[1759887986835,2.91510707,4481.6,4481.5,4.0782]
[1759887987235,3.425,4482.2,4482.1,0.7729]
[1759887987539,7.02991257,4482.2,4482.1,1.17429]
[1759887987733,7.02991257,4482.2,4482.1,0.7729]
[1759887987734,4.03741257,4482.2,4482.1,0.7729]
[1759887988538,3.53292098,4482.2,4482.1,0.7729]
[1759887990138,2.87642098,4482.2,4482.1,0.7729]
[1759887990539,0.4412,4482.3,4482.2,1.17428]
[1759887991047,3.36062482,4482.3,4482.2,1.17428]
[1759887993431,3.57592482,4482.3,4482.2,1.17428]
[1759887995544,3.57592482,4482.3,4482.2,0.40138]
[1759887995545,3.90192482,4482.3,4482.2,0.40138]
[1759887995746,4.30329482,4482.3,4482.2,0.40138]
[1759887996346,3.57592482,4482.3,4482.2,1.17428]
[1759887996546,3.90192482,4482.3,4482.2,1.17428]
[1759887996844,3.90192482,4482.3,4482.2,0.95108]
[1759887997644,3.90192482,4482.3,4482.2,0.40138]
[1759887998544,3.90192482,4482.3,4482.2,0.72758]
[1759887998742,3.90192482,4482.3,4482.2,0.95108]
[1759888000144,3.90192482,4482.3,4482.2,0.3262]
[1759888000145,4.30329482,4482.3,4482.2,0.3262]
[1759888000350,4.30329482,4482.3,4482.1,3.2078]
[1759888000351,0.7746,4481.8,4481.7,0.40142]
[1759888000549,0.9986,4481.8,4481.7,0.94692]
[1759888000752,3.54036743,4481.8,4481.7,1.17302]
[1759888002051,3.32936743,4481.8,4481.7,3.87370665]
[1759888002251,3.10536743,4481.8,4481.7,3.87370665]
[1759888002453,3.32936743,4481.8,4481.7,3.87370665]
[1759888003850,2.88006743,4481.8,4481.7,3.87370665]
[1759888004060,0.83766,4482.5,4482.4,1.17296]
[1759888004253,0.72788874,4482.5,4482.4,1.17296]
[1759888004452,3.06283284,4482.5,4482.4,1.17296]
[1759888005056,3.28813284,4482.5,4482.4,1.17296]
[1759888005858,3.06283284,4482.5,4482.4,1.17296]
[1759888006158,3.28813284,4482.5,4482.4,1.17296]
[1759888008054,3.49913284,4482.5,4482.4,1.17296]
[1759888009158,3.49913284,4482.5,4482.4,1.9320408]
[1759888011263,3.49913284,4482.5,4482.4,2.6911216]
[1759888011761,3.49913284,4482.5,4482.4,1.9320408]
[1759888014765,4.00431131,4482.5,4482.4,1.9320408]
[1759888015963,3.56801131,4482.5,4482.4,1.39696]
[1759888016158,0.95447847,4482.5,4482.4,2.1560408]
[1759888016564,0.95447847,4482.5,4482.4,1.9320408]
[1759888016965,0.95447847,4482.5,4482.4,2.6911216]
[1759888017161,0.00169967,4482.7,4482.4,2.2897616]
[1759888017366,0.00169967,4482.7,4482.6,1.15225]
[1759888017567,0.50714,4482.7,4482.6,1.15225]
[1759888017863,0.50714,4482.7,4482.6,1.37625]
[1759888018167,0.00169967,4482.7,4482.6,1.37625]
[1759888018567,0.224,4483.2,4483.1,0.8225]
[1759888018866,3.66237487,4483.2,4483.1,5.1190808]
[1759888019570,3.66400592,4483.2,4483.1,5.1190808]
[1759888020366,1.19958717,4484.6,4484.5,0.2113]
[1759888020667,0.2187,4485.1,4485.0,0.5537]
[1759888020868,0.7466,4485.1,4485.0,4.5205808]
[1759888021070,1.25170047,4485.1,4485.0,4.1767808]
[1759888021271,1.25170047,4485.1,4485.0,4.5064808]
[1759888021469,1.25411271,4485.1,4485.0,4.50866516]
[1759888021769,4.31736832,4485.1,4485.0,0.00218436]
[1759888022271,10.07644912,4485.1,4485.0,0.00218436]
[1759888022569,0.7466,4484.4,4484.3,1.1602708]
[1759888022966,3.61368894,4484.4,4484.3,1.1602708]
[1759888023369,3.61368894,4484.4,4484.3,1.16220334]
[1759888023672,3.61368894,4484.4,4484.3,1.49190334]
[1759888023870,3.61368894,4484.4,4484.3,1.70180334]
[1759888024071,3.61368894,4484.4,4484.3,4.90960334]
[1759888026377,3.61368894,4484.4,4484.3,4.37000334]
[1759888026573,3.61368894,4484.4,4484.3,3.96881334]
[1759888026878,9.11870088,4484.4,4484.3,3.20973254]
[1759888028085,9.11870088,4484.4,4484.3,3.96881334]
[1759888028372,3.80360088,4484.4,4484.3,4.71971334]
[1759888028576,2.86708894,4484.4,4484.3,4.71971334]
[1759888028872,0.00241224,4485.1,4485.0,1.28453]
[1759888029076,0.00241224,4485.1,4485.0,6.2344916]
[1759888029278,2.88684585,4485.1,4485.0,6.2344916]
[1759888029576,0.00241224,4485.1,4485.0,6.2344916]
[1759888031173,0.00241224,4485.1,4485.0,47.0344916]
[1759888032375,0.224,4485.8,4485.7,0.40107]
[1759888032583,0.7466,4486.3,4486.2,0.94062]
[1759888032780,1.25065407,4486.3,4486.2,1.15192]
[1759888032983,4.08922365,4486.3,4486.2,1.15192]
[1759888033380,3.77614982,4486.3,4486.2,1.9110008]
[1759888033681,0.00202617,4486.3,4486.2,2.6700816]
[1759888034272,0.00202617,4486.3,4486.2,2.8533499]
[1759888035075,0.00202617,4486.3,4486.2,44.82752348]
[1759888037179,0.00202617,4486.3,4486.2,42.1351883]
[1759888037675,0.31712617,4486.3,4486.2,1.15192]
[1759888037882,3.59859174,4486.3,4486.2,1.16462]
[1759888038079,0.22072617,4486.3,4486.2,1.37592]
[1759888038477,0.00202617,4486.3,4486.2,1.37592]
[1759888038883,0.00202617,4486.3,4486.2,42.17592]
[1759888039081,0.00202617,4486.3,4486.2,41.95192]
[1759888039279,0.00202617,4486.3,4486.2,42.17592]
[1759888040284,0.00202617,4486.3,4486.2,41.95192]
[1759888040485,0.00202617,4486.3,4486.2,42.17592]
[1759888043887,0.00202617,4486.3,4486.2,45.38372]
[1759888044084,0.00202617,4486.3,4486.2,45.15972]
[1759888044388,3.22866317,4486.3,4486.2,45.38372]
[1759888044978,3.66016317,4486.3,4486.2,4.35972]
[1759888045183,3.66016317,4486.3,4486.2,4.58372]
[1759888045488,3.34506317,4486.3,4486.2,4.58372]
[1759888049691,3.66256317,4486.3,4486.2,4.58372]
[1759888050490,3.66256317,4486.3,4486.2,3.2078]
[1759888050491,4.06358317,4486.3,4486.2,3.2078]
[1759888050688,1.14714,4486.1,4486.0,0.40104]
[1759888050890,1.14716,4485.8,4485.7,3.2078]
[1759888051084,0.4286,4485.5,4485.4,0.4011]
[1759888051283,0.7461,4485.5,4485.4,0.9442]
[1759888051487,3.65829491,4485.5,4485.4,0.9442]
[1759888052586,0.4011,4485.4,4485.2,0.3191]
[1759888052889,0.7461,4485.2,4485.1,3.2078]
[1759888053185,4.14325843,4485.2,4485.1,3.2078]
[1759888054188,0.3175,4484.6,4484.5,3.2078]
[1759888054389,1.23768,4484.5,4484.4,0.40118]
[1759888054691,4.18847925,4484.5,4484.4,0.40118]
[1759888055590,3.78729925,4484.5,4484.4,0.40118]
[1759888056195,3.78729925,4484.5,4484.2,0.94525469]
[1759888056490,1.14729,4484.4,4484.2,0.94525469]
[1759888056894,4.07242276,4484.4,4484.2,0.94525469]
[1759888057092,4.07242276,4484.4,4484.2,1.34645469]
[1759888057693,4.07242276,4484.4,4484.2,0.4012]
[1759888058302,3.67123276,4484.4,4484.2,0.4012]
[1759888063195,3.14913276,4484.4,4484.3,0.75053254]
[1759888064197,3.13813276,4484.4,4484.3,1.91978723]
[1759888064398,3.66373276,4484.4,4484.3,1.69578723]
[1759888064596,3.66373276,4484.4,4484.3,0.00193254]
[1759888064796,3.88773276,4484.4,4484.3,0.00193254]
[1759888065896,3.88773276,4484.4,4484.3,0.33123254]
[1759888066902,3.88773276,4484.4,4484.3,0.54553254]
[1759888068088,3.88773276,4484.4,4484.3,0.94672254]
[1759888068293,4.28892276,4484.4,4484.3,0.94672254]
[1759888069294,4.28892276,4484.4,4484.3,0.54553254]
[1759888069500,4.28892276,4484.4,4484.3,0.00193254]
[1759888070792,4.28892276,4484.4,4483.5,4.34545]
[1759888070793,0.7386,4483.4,4483.3,0.40128]
[1759888070993,0.7386,4483.4,4483.3,4.32950167]
[1759888071200,3.38072422,4483.4,4483.3,4.53450167]
[1759888071405,3.69302422,4483.4,4483.3,4.53450167]
[1759888071796,2.95442422,4483.4,4483.3,4.53738978]
[1759888073593,3.16742422,4483.4,4483.3,4.53738978]
[1759888073991,3.38072422,4483.4,4483.3,4.36056811]
[1759888074196,3.69302422,4483.4,4483.3,4.36056811]
[1759888075798,3.69302422,4483.4,4483.3,4.53857211]
[1759888076098,3.38072422,4483.4,4483.3,4.53857211]
[1759888077399,3.69402422,4483.4,4483.3,4.36056811]
[1759888077599,3.69402422,4483.4,4483.3,4.58456811]
[1759888078702,3.69402422,4483.4,4483.3,4.36056811]
[1759888078905,3.69402422,4483.4,4483.3,4.58456811]
[1759888079304,3.69402422,4483.4,4483.3,4.7659705]
[1759888079606,3.38072422,4483.4,4483.3,4.5419705]
[1759888079902,3.38072422,4483.4,4483.3,4.7659705]
[1759888080500,3.38072422,4483.4,4483.3,4.58456811]
[1759888080896,3.38072422,4483.4,4483.3,4.76295925]
[1759888081099,3.38072422,4483.4,4483.3,4.53895925]
[1759888081304,3.38072422,4483.4,4483.3,4.76195925]
[1759888081598,2.95442422,4483.4,4483.3,4.76195925]
[1759888081995,0.4239,4484.5,4484.4,0.61579]
[1759888082196,1.55209255,4484.5,4484.4,0.3394]
[1759888082403,3.26239844,4484.4,4484.3,0.40119]
[1759888082606,4.07971099,4484.4,4484.3,0.40119]
[1759888082805,0.7372,4484.2,4484.1,0.94525469]
[1759888083002,1.46421255,4484.2,4484.0,3.2078]
[1759888083207,1.13841,4484.1,4484.0,3.60902]
[1759888083404,1.64278728,4484.1,4484.0,3.60902]
[1759888083605,4.53797887,4484.1,4484.0,0.40122]
[1759888083805,4.03360159,4484.1,4484.0,0.40122]
[1759888084310,4.53803697,4484.1,4484.0,0.40122]
[1759888085806,0.40126,4483.6,4483.5,3.2078]
[1759888086014,1.36146,4483.6,4483.5,3.2078]
[1759888086213,1.13848,4483.4,4483.3,0.00288811]
[1759888086408,1.36148,4483.4,4483.3,0.00288811]
[1759888086713,4.82704511,4483.4,4483.3,0.00288811]
[1759888091215,4.42576511,4483.4,4483.3,0.00288811]
[1759888091415,3.90766511,4483.4,4483.3,4.9275428]
[1759888091620,3.39945068,4483.4,4483.3,4.9275428]
[1759888091816,3.60425068,4483.4,4483.3,4.9275428]
[1759888092123,3.91755068,4483.4,4483.3,0.00288811]
[1759888093022,4.42548641,4483.4,4483.3,0.00288811]
[1759888094121,0.40136,4482.4,4482.3,0.18211172]
[1759888094423,3.61238924,4482.4,4482.3,0.58348172]
[1759888094723,3.61238924,4482.4,4482.3,0.40137]
[1759888094724,3.92568924,4482.4,4482.3,0.40137]
[1759888095124,3.92761098,4482.4,4482.3,0.40341063]
[1759888095325,3.92761098,4482.4,4482.3,0.95741063]
[1759888095815,3.61431098,4482.4,4482.3,1.17501063]
[1759888096620,2.96741098,4482.4,4482.3,1.17501063]
[1759888097222,2.96741098,4482.4,4482.3,1.93405276]
[1759888100525,3.18651098,4482.4,4482.3,1.93405276]
[1759888100727,3.18651098,4482.4,4482.3,2.15705276]
[1759888103524,0.7372,4483.3,4483.2,0.95529]
[1759888103730,0.7372,4483.3,4483.2,1.16033213]
[1759888103731,1.46906235,4483.3,4483.2,1.16033213]
[1759888104024,4.71297485,4483.3,4483.2,1.16033213]
[1759888104432,4.71584817,4483.3,4483.2,1.16033213]
[1759888105320,4.31456817,4483.3,4483.2,1.16033213]
[1759888105626,4.31456817,4483.3,4483.2,1.71433213]
[1759888106132,3.77726817,4483.3,4483.2,1.93193213]
[1759888106329,2.84550582,4483.3,4483.2,2.15593213]
[1759888106528,0.00287332,4483.3,4483.2,2.15593213]
[1759888107231,0.2251,4484.1,4484.0,0.1349]
[1759888107438,0.4491,4484.1,4484.0,4.94616213]
[1759888107728,0.6622,4484.5,4484.4,0.84439]
[1759888107931,0.6622,4484.5,4484.4,1.91813213]
[1759888108126,3.34997824,4484.5,4484.4,1.91813213]
[1759888108429,2.914635,4484.5,4484.4,7.09782574]
[1759888108630,0.00285676,4484.5,4484.4,7.09782574]
[1759888108830,3.2078,4485.3,4485.2,0.2196]
[1759888109023,3.646,4486.4,4486.3,0.62062]
[1759888109226,4.70081584,4486.4,4486.3,0.93532]
[1759888109422,7.21815609,4486.4,4486.3,1.15892]
[1759888109837,7.22038738,4486.4,4486.3,1.16133421]
[1759888110132,6.71287154,4486.4,4486.3,1.16133421]
[1759888111233,7.03617154,4486.4,4486.3,0.93773421]
[1759888111430,7.03617154,4486.4,4486.3,0.40343421]
[1759888112732,7.03617154,4486.4,4486.3,1.16133421]
[1759888112934,7.03617154,4486.4,4486.3,0.00241421]
[1759888113330,7.03617154,4486.4,4486.3,0.53671421]
[1759888113635,7.03617154,4486.4,4486.3,0.76031421]
[1759888114337,6.05067154,4486.4,4486.3,0.76031421]
[1759888114637,3.06797154,4486.4,4486.3,0.76031421]
[1759888116237,0.00223129,4486.4,4486.3,1.51935634]
[1759888117043,0.4382,4487.1,4487.0,1.29375]
[1759888117234,0.6622,4487.1,4487.0,5.26059213]
[1759888117440,3.61207746,4487.1,4487.0,5.26059213]
[1759888117938,3.61420513,4487.1,4487.0,5.26059213]
[1759888120342,3.61420513,4487.1,4487.0,4.85964213]
[1759888120644,3.17710513,4487.1,4487.0,5.08264213]
[1759888121440,2.95200513,4487.1,4487.0,5.08264213]
[1759888122335,0.00212767,4487.1,4487.0,5.08264213]
[1759888122940,0.00212767,4487.1,4487.0,10.08264213]
[1759888123343,0.245,4487.9,4487.8,1.17548]
[1759888123545,0.245,4487.9,4487.8,5.14232213]
[1759888123737,3.10182893,4487.9,4487.8,5.14232213]
[1759888124444,3.10387539,4487.9,4487.8,5.14232213]
[1759888124745,3.10387539,4487.9,4487.8,4.38328]
[1759888125542,0.02404646,4487.9,4487.8,4.60628]
[1759888126342,0.44234646,4487.9,4487.8,4.38328]
[1759888126544,0.44234646,4487.9,4487.8,4.60628]
[1759888126842,0.02404646,4487.9,4487.8,5.36532213]
[1759888133149,0.02404646,4487.9,4487.8,46.16532213]
[1759888134051,0.02404646,4487.9,4487.8,45.94232213]
[1759888134247,0.02404646,4487.9,4487.8,46.16532213]
[1759888135146,0.23224646,4487.9,4487.8,5.14232213]
[1759888135444,0.23224646,4487.9,4487.8,5.36532213]
[1759888135650,0.23224646,4487.9,4487.8,5.14232213]
[1759888135851,0.23224646,4487.9,4487.8,5.36532213]
[1759888136052,0.44234646,4487.9,4487.8,5.36532213]
[1759888136252,0.44234646,4487.9,4487.8,4.60628]
[1759888136649,0.44234646,4487.9,4487.8,4.38328]
[1759888136851,0.2082,4487.7,4487.6,0.75904213]
[1759888137050,0.7354,4487.7,4487.6,0.75904213]
[1759888137249,4.13285054,4487.7,4487.6,0.75904213]
[1759888137549,0.336,4487.6,4487.4,0.3168]
[1759888137750,2.89615789,4487.7,4487.6,0.4009]
[1759888137955,0.79384646,4487.9,4487.8,1.16258]
[1759888138143,0.95911779,4487.9,4487.8,1.16258]
[1759888138454,3.80035818,4487.9,4487.8,4.37038]
[1759888138856,4.13635818,4487.9,4487.8,5.12942213]
[1759888139154,4.13635818,4487.9,4487.8,0.98344213]
[1759888139352,4.13635818,4487.9,4487.8,0.75904213]
[1759888139552,4.13635818,4487.9,4487.8,1.07584213]
[1759888139755,4.13635818,4487.9,4487.8,1.30024213]
[1759888140449,4.13635818,4487.9,4487.8,1.52074213]
[1759888141752,0.7698,4487.8,4487.7,0.94209]
[1759888141954,0.72627133,4487.8,4487.7,1.52074213]
[1759888142257,0.50127133,4487.8,4487.7,1.74374213]
[1759888143158,0.50127133,4487.8,4487.7,0.9847]
[1759888144654,0.34397815,4487.8,4487.7,0.9847]
[1759888144861,0.02404646,4487.9,4487.8,1.16258]
[1759888145058,0.02404646,4487.9,4487.8,4.37038]
[1759888145254,3.3227,4489.0,4487.8,4.37038]
[1759888145255,1.19958717,4489.0,4488.8,0.40079]
[1759888145461,0.225,4489.0,4488.9,0.7617]
[1759888145862,3.09844473,4489.0,4488.9,0.7617]
[1759888146154,3.64324473,4489.0,4488.9,0.7617]
[1759888146354,3.64502233,4489.0,4488.9,0.7617]
[1759888149164,3.30902233,4489.0,4488.9,0.7617]
[1759888149558,3.30902233,4489.0,4488.9,1.52074213]
[1759888149559,2.87522233,4489.0,4488.9,1.52074213]
[1759888149855,0.0017776,4489.0,4488.9,0.7617]
[1759888150256,0.0017776,4489.0,4488.9,1.52074213]
[1759888153460,0.0017776,4489.0,4488.9,1.74374213]
[1759888153761,0.0017776,4489.0,4488.9,0.7617]
[1759888153961,0.0017776,4489.0,4488.9,0.9847]
[1759888154564,0.0017776,4489.0,4488.9,1.74374213]
[1759888156669,0.49835283,4489.0,4488.9,1.74374213]
[1759888156973,0.72335283,4489.0,4488.9,0.7617]
[1759888157178,0.49835283,4489.0,4488.9,0.9847]
[1759888157366,0.49835283,4489.0,4488.9,1.38548]
[1759888158166,0.49835283,4489.0,4488.9,1.16248]
[1759888158370,0.49835283,4489.0,4488.9,1.38548]
[1759888158571,0.49835283,4489.0,4488.9,1.16248]
[1759888158872,0.49835283,4489.0,4488.9,1.38548]
[1759888159074,0.49835283,4489.0,4488.9,2.32860925]
[1759888159572,0.49818456,4489.0,4488.9,2.10560925]
[1759888159871,0.49818456,4489.0,4488.9,2.32860925]
[1759888160465,1.33275456,4489.0,4488.9,0.7617]
[1759888160766,4.61830949,4489.0,4488.9,0.5412]
[1759888160965,0.225,4488.7,4488.6,0.223]
[1759888161171,1.26620696,4488.7,4488.6,0.5398]
[1759888161466,1.26620696,4488.7,4488.6,0.7642]
[1759888161671,1.26620696,4488.7,4488.6,0.5412]
[1759888161672,4.16824393,4488.7,4488.6,0.5412]
[1759888162766,4.16824393,4488.7,4488.6,0.3168]
[1759888163075,0.7698,4488.4,4488.3,0.94203]
[1759888163373,4.19571594,4488.4,4488.3,0.5412]
[1759888163672,1.17064,4488.3,4488.2,3.5246]
[1759888163876,1.66704696,4488.3,4488.2,3.5246]
[1759888164072,4.59655594,4488.3,4488.2,3.5246]
[1759888164668,4.19571594,4488.3,4488.2,3.5246]
[1759888164868,3.69930898,4488.3,4488.2,3.5246]
[1759888165473,3.69930898,4488.3,4488.2,0.3168]
[1759888166868,3.69930898,4488.3,4488.2,0.5412]
[1759888168167,3.69930898,4488.3,4488.2,0.7617]
[1759888168367,3.69930898,4488.3,4488.2,0.5412]
[1759888168573,3.69930898,4488.3,4488.2,0.3168]
[1759888168774,0.7613,4487.8,4487.7,3.7351]
[1759888168977,1.16218,4487.8,4487.7,4.13599]
[1759888169176,4.03057353,4487.8,4487.7,4.13599]
[1759888170175,4.03057353,4487.8,4487.7,0.92819]
[1759888170677,4.03057353,4487.8,4487.7,0.3217]
[1759888170873,1.16219,4487.7,4487.6,0.40089]
[1759888171077,2.86839353,4487.8,4487.4,0.94312925]
[1759888171078,0.7613,4487.5,4487.4,1.34404925]
[1759888171378,4.11677044,4487.5,4487.4,1.26482925]
[1759888171580,4.11677044,4487.5,4487.3,0.40092]
[1759888171782,3.78527044,4487.5,4487.4,0.40092]
[1759888172080,4.23467044,4487.5,4487.4,0.40092]
[1759888172376,2.95456044,4487.5,4487.4,2.08654925]
[1759888172675,3.6376,4488.2,4488.1,0.82165]
[1759888172879,3.6376,4488.2,4488.1,2.08647925]
[1759888172880,3.91714777,4488.2,4488.1,2.08647925]
[1759888173182,6.78915573,4488.2,4488.1,2.08647925]
[1759888173382,6.29240796,4488.2,4488.1,2.08647925]
[1759888173680,3.08460796,4488.2,4488.1,2.08647925]
[1759888174583,2.87200796,4488.2,4488.1,2.08647925]
[1759888174877,3.08460796,4488.2,4488.1,2.08647925]
[1759888175375,3.63330796,4488.2,4488.1,1.14335]
[1759888175578,3.30180796,4488.2,4488.1,1.14335]
[1759888175780,3.63330796,4488.2,4488.1,1.14335]
[1759888177783,4.03415796,4488.2,4488.1,1.14335]
[1759888178281,3.63330796,4488.2,4488.1,1.14335]
[1759888178783,4.03415796,4488.2,4488.1,1.14335]
[1759888178983,0.40087,4488.0,4487.9,0.40087]
[1759888179277,4.00822666,4488.0,4487.9,0.40087]
[1759888179479,3.60735666,4488.0,4487.9,0.93327]
[1759888179878,3.60735666,4488.0,4487.9,1.15727]
[1759888180074,2.84605666,4488.0,4487.9,1.15727]
[1759888180585,3.05055666,4488.0,4487.9,1.15727]
[1759888181879,3.27695666,4488.0,4487.9,1.15727]
[1759888182181,3.58365666,4488.0,4487.9,0.93327]
[1759888184379,3.58365666,4488.0,4487.9,0.40087]
[1759888184682,3.58365666,4488.0,4487.9,0.71527]
[1759888185385,3.98451666,4488.0,4487.9,0.71527]
[1759888185782,0.83177,4487.9,4487.8,3.2078]
[1759888185983,1.36147,4487.9,4487.8,3.2078]
[1759888186189,4.19921765,4487.9,4487.8,3.2078]
[1759888186379,4.19921765,4487.9,4487.8,3.60868]
[1759888186781,4.19921765,4487.9,4487.8,3.92308]
[1759888187284,3.79834765,4487.9,4487.8,4.14108]
[1759888187584,4.19921765,4487.9,4487.8,4.14108]
[1759888190385,3.06074765,4487.9,4487.8,4.36508]
[1759888190686,2.83774765,4487.9,4487.8,4.36508]
[1759888190882,1.13842,4488.6,4488.5,0.93322]
[1759888191189,4.72372576,4488.6,4488.5,0.93322]
[1759888191885,4.72372576,4488.6,4488.5,0.71522]
[1759888192087,4.72372576,4488.6,4488.5,0.40082]
[1759888192684,0.83174,4488.4,4488.3,0.40083]
[1759888192884,0.83175,4488.3,4488.2,0.40085]
[1759888193083,1.32873025,4488.3,4488.2,0.40085]
[1759888193288,4.27320977,4488.3,4488.2,0.40085]
[1759888193486,4.57990977,4488.3,4488.2,0.40085]
[1759888194285,0.60537,4488.0,4487.9,0.71527]
[1759888194480,1.36147,4488.0,4487.9,0.71527]
[1759888194686,4.22876312,4488.0,4487.9,0.71527]
[1759888195294,0.3067,4487.6,4487.3,3.5222]
[1759888195587,0.7376,4487.4,4487.3,4.14113]
[1759888195786,0.7376,4487.4,4487.3,4.36513]
[1759888196091,3.63258962,4487.4,4487.3,4.36513]
[1759888199193,3.32588962,4487.4,4487.3,4.36513]
[1759888199394,2.89498962,4487.4,4487.3,4.36513]
[1759888199594,3.10618962,4487.4,4487.3,4.36513]
[1759888199803,0.2112,4487.4,4487.3,4.36513]
[1759888200094,2.9529249,4487.4,4487.3,9.58813]
[1759888200284,0.2112,4488.4,4488.3,0.60854]
[1759888200488,0.93164003,4488.4,4488.3,0.81964]
[1759888200789,3.99634768,4488.4,4488.3,1.14964]
[1759888200989,3.77474768,4488.4,4488.3,1.14964]
[1759888201194,3.56354768,4488.4,4488.3,1.14964]